bitfinex-derivatives/quotes_SOLF0:USTF0_20250311
["timestamp","ask_amount","ask_price","bid_price","bid_amount"]
[1741705511444,4.0855,120.66,120.58,0.06285399]
[1741705511740,4.0855,120.66,120.58,82.0551503]
[1741705511948,4.0855,120.66,120.58,59.16]
[1741705512140,22.8951503,120.65,120.58,59.16]
[1741705512541,22.8951503,120.65,120.55,195.0962]
[1741705512747,4.2236,120.64,120.6,0.05226013]
[1741705513144,22.8951503,120.63,120.6,0.05226013]
[1741705513443,4.2236,120.64,120.6,0.05226013]
[1741705514637,63.2255,120.66,120.6,0.05226013]
[1741705514945,27.2718503,120.69,120.6,0.05226013]
[1741705514946,4.3767,120.69,120.6,59.17226013]
[1741705515242,341.853789,120.81,120.64,22.8951503]
[1741705515243,22.8951503,120.74,120.64,22.8951503]
[1741705515443,35.4097503,120.76,120.65,59.12]
[1741705515643,35.4097503,120.76,120.65,63.1549]
[1741705515843,12.5146,120.76,120.69,0.05641449]
[1741705516051,8.453,120.76,120.69,0.05641449]
[1741705516440,11.19411887,120.75,120.69,0.05641449]
[1741705516646,22.8951503,120.74,120.69,0.05641449]
[1741705517152,34.08926917,120.75,120.69,0.05641449]
[1741705517350,8.2859,120.72,120.69,0.05641449]
[1741705517550,34.08926917,120.75,120.69,0.05641449]
[1741705518252,22.8951503,120.71,120.65,59.12]
[1741705518456,22.8951503,120.69,120.59,59.08]
[1741705518653,22.8951503,120.67,120.59,59.08]
[1741705518855,22.8951503,120.65,120.59,59.08]
[1741705519157,22.8951503,120.65,120.56,277.7929]
[1741705519557,0.05641449,120.62,120.59,0.05450125]
[1741705519952,0.05641449,120.62,120.56,300.6880503]
[1741705520153,1.44290571,120.71,120.59,0.05320149]
[1741705520451,37.05778987,120.69,120.57,37.05778987]
[1741705520961,37.05778987,120.67,120.56,277.7929]
[1741705521158,8.2902,120.66,120.56,277.7929]
[1741705521359,37.05778987,120.68,120.6,0.05814424]
[1741705521561,8.115,120.7,120.6,59.09814424]
[1741705521854,4.0096,120.7,120.64,0.05821]
[1741705522050,59.04,120.72,120.64,0.05821]
[1741705522255,4.0096,120.75,120.64,4.08731]
[1741705522453,4.0096,120.75,120.65,59.04]
[1741705522653,37.05778987,120.76,120.68,0.05229409]
[1741705522957,44.77647548,120.79,120.7,37.05778987]
[1741705523161,44.77647548,120.79,120.71,341.10681429]
[1741705523361,44.77647548,120.79,120.72,37.05778987]
[1741705523765,44.77647548,120.79,120.76,8.2831]
[1741705523961,44.77647548,120.79,120.76,59.02]
[1741705524956,44.77647548,120.79,120.77,4.1349]
[1741705525358,44.77647548,120.79,120.73,4.1983]
[1741705525559,44.77647548,120.79,120.77,0.06275551]
[1741705525859,37.05778987,120.82,120.77,0.06275551]
[1741705526060,8.2818,120.78,120.77,0.06275551]
[1741705526261,37.05778987,120.78,120.71,273.62]
[1741705526557,3.9871,120.79,120.71,273.62]
[1741705527063,37.05778987,120.84,120.73,37.05778987]
[1741705527260,12.63475474,120.92,120.75,37.05778987]
[1741705527562,37.05778987,120.84,120.76,4.1589]
[1741705527763,4.3184,120.83,120.82,0.05540308]
[1741705528062,8.2802,120.81,120.74,8.3023]
[1741705528265,4.3184,120.83,120.74,8.3023]
[1741705528559,37.05778987,120.8,120.74,8.3023]
[1741705528863,3.9871,120.88,120.75,96.01778987]
[1741705529157,0.05762505,120.83,120.8,0.0613196]
[1741705529354,0.05762505,120.83,120.75,96.01778987]
[1741705529552,37.05778987,120.87,120.8,0.06327505]
[1741705529755,3.9871,120.88,120.8,59.00327505]
[1741705529951,41.13718987,120.91,120.8,59.00327505]
[1741705530156,41.13718987,120.91,120.81,20.9942]
[1741705530157,0.05579766,120.85,120.81,20.9942]
[1741705530359,0.05579766,120.85,120.84,0.06294606]
[1741705531359,11.19411887,120.92,120.84,2.54294606]
[1741705531564,11.19411887,120.92,120.86,37.05778987]
[1741705531768,52.43053627,120.93,120.89,8.2741]
[1741705531960,52.43053627,120.93,120.9,100.06128987]
[1741705532157,52.43053627,120.93,120.92,8.2722]
[1741705532369,52.43053627,120.93,120.91,58.92]
[1741705532569,52.43053627,120.93,120.91,58.97818148]
[1741705532865,8.3276414,120.94,120.91,58.97818148]
[1741705533060,0.0566414,120.94,120.91,0.05818148]
[1741705533265,8.2721,120.93,120.91,0.05818148]
[1741705533463,0.0566414,120.94,120.91,0.05818148]
[1741705533863,0.0566414,120.94,120.92,58.86]
[1741705534568,0.0566414,120.94,120.91,0.05818148]
[1741705535469,0.0566414,120.94,120.91,8.33088148]
[1741705535670,0.0566414,120.94,120.91,0.05818148]
[1741705536666,4.14e-05,120.94,120.92,331.98]
[1741705536965,37.05778987,121.1,120.94,228.05778987]
[1741705537160,37.05778987,121.14,120.94,228.05778987]
[1741705537161,41.04478987,121.13,121.01,37.05778987]
[1741705537366,37.05778987,121.1,121.02,331.98]
[1741705537664,37.05778987,121.04,120.97,4.102]
[1741705537964,37.05778987,121.02,120.94,464.16]
[1741705538165,37.05778987,121.0,120.94,273.16]
[1741705538360,37.05778987,121.02,120.99,0.05438397]
[1741705538567,37.05778987,121.0,120.91,4.102]
[1741705538768,8.2679,120.99,120.91,4.102]
[1741705538968,37.05778987,121.02,120.91,62.922]
[1741705539469,37.05778987,121.0,120.91,62.922]
[1741705539971,0.05229668,120.98,120.95,0.05379633]
[1741705540367,0.05229668,120.98,120.94,273.04]
[1741705540567,0.05229668,120.98,120.95,0.05604909]
[1741705541567,8.2695,120.96,120.95,0.05604909]
[1741705541770,37.05778987,120.97,120.87,58.76]
[1741705541976,8.2723,120.92,120.87,58.76]
[1741705542166,41.20688987,120.95,120.85,340.4151]
[1741705542367,37.05778987,120.93,120.85,331.8]
[1741705542574,37.05778987,120.9,120.81,145.84829162]
[1741705542764,37.05778987,120.92,120.81,145.84829162]
[1741705542963,37.05778987,120.92,120.82,99.52146028]
[1741705543168,0.05476876,120.87,120.85,0.06356994]
[1741705543467,4.1351,120.91,120.85,0.06356994]
[1741705543678,37.05778987,120.93,120.85,0.06356994]
[1741705543869,0.05670366,120.87,120.85,0.06356994]
[1741705544070,8.2754,120.88,120.83,8.2782]
[1741705544271,95.79778987,120.91,120.85,0.0620614]
[1741705544575,0.0567484,120.87,120.85,8.3384614]
[1741705544767,0.00069931,120.87,120.85,0.0620614]
[1741705547275,0.00069931,120.87,120.86,66.9963]
[1741705547668,12.3064,120.94,120.88,8.2747]
[1741705547876,4.0349,120.94,120.86,368.77778987]
[1741705548071,4.0349,120.94,120.86,331.72]
[1741705548577,4.0349,120.94,120.87,37.05778987]
[1741705548765,4.0349,120.94,120.86,331.72]
[1741705548968,0.05698991,120.91,120.89,0.05998189]
[1741705549176,4.3537,121.0,120.89,0.05998189]
[1741705549177,37.05778987,120.99,120.89,0.05998189]
[1741705549377,4.3537,121.0,120.89,8.34598189]
[1741705549574,37.05778987,120.98,120.89,8.286]
[1741705549873,8.4597,121.01,120.91,37.05778987]
[1741705550075,8.4597,121.01,120.93,37.05778987]
[1741705550267,41.37068987,121.05,120.93,273.02]
[1741705550472,4.1575,121.04,120.96,0.05990324]
[1741705550875,4.1575,121.04,120.93,273.02]
[1741705551071,4.1575,121.04,120.99,0.05234316]
[1741705551379,4.0582,121.06,120.99,0.05234316]
[1741705551778,37.05778987,121.04,120.99,0.05234316]
[1741705551979,8.2617,121.08,121.0,272.96]
[1741705552475,1.43789769,121.15,121.03,0.0613942]
[1741705552677,271.05943987,121.22,121.03,0.0613942]
[1741705552678,77.62988729,121.22,121.19,37.05778987]
[1741705552875,4.0691,121.36,121.21,37.05778987]
[1741705553079,402.64492858,121.27,121.22,58.68]
[1741705553275,49.54992934,121.25,121.22,58.68]
[1741705553480,235.92666816,121.28,121.24,37.05778987]
[1741705553677,4.0582,121.38,121.27,37.05778987]
[1741705553871,118.05907934,121.37,121.3,37.05778987]
[1741705554077,118.05907934,121.37,121.28,58.68]
[1741705554380,118.05907934,121.37,121.23,161.0]
[1741705554381,213.73686921,121.37,121.32,0.05807419]
[1741705554578,37.05778987,121.34,121.23,249.62]
[1741705554772,166.75907934,121.37,121.23,249.62]
[1741705554773,176.67907934,121.37,121.24,37.05778987]
[1741705555474,176.67907934,121.37,121.09,191.0]
[1741705555676,24.86,121.13,120.78,419.4758519]
[1741705555878,37.05778987,120.85,120.57,191.0]
[1741705556074,37.05778987,120.96,120.73,37.05778987]
[1741705556278,37.05778987,120.98,120.82,37.05778987]
[1741705556479,37.05778987,121.02,120.87,37.05778987]
[1741705556678,0.05872818,120.91,120.88,58.62]
[1741705556985,37.05778987,121.02,120.93,0.05209986]
[1741705557177,41.27778987,121.05,120.94,272.76]
[1741705557373,4.22,121.05,120.94,331.38]
[1741705557576,4.2054,121.1,120.98,37.05778987]
[1741705557777,4.2054,121.1,120.99,58.62]
[1741705558180,4.2054,121.1,121.03,0.0526494]
[1741705558582,37.05778987,121.16,121.04,58.62]
[1741705558786,437.55468506,121.05,121.04,58.62]
[1741705559579,437.55468506,121.05,121.03,0.06128531]
[1741705560375,474.61247493,121.05,120.98,272.7]
[1741705560584,37.05778987,121.02,120.95,1.65357585]
[1741705560785,37.05778987,120.99,120.9,272.7]
[1741705561476,37.05778987,120.96,120.9,272.7]
[1741705561684,37.11213766,120.96,120.9,272.7]
[1741705562287,37.11213766,120.96,120.86,58.6]
[1741705562490,0.05434779,120.96,120.9,37.05778987]
[1741705562783,8.1328,121.01,120.92,0.05750925]
[1741705562987,8.1328,121.01,120.93,331.38]
[1741705563287,125.03459982,121.04,120.93,368.43778987]
[1741705563487,125.03459982,121.04,120.93,331.38]
[1741705563687,4.042,121.06,120.95,37.05778987]
[1741705564085,4.042,121.06,120.95,228.05778987]
[1741705564282,0.05906244,121.02,120.99,0.05728022]
[1741705564680,32.94868682,121.07,121.0,331.4]
[1741705564886,32.94868682,121.07,121.01,37.05778987]
[1741705565091,32.94868682,121.07,120.99,191.0]
[1741705565483,70.00647669,121.07,120.99,522.4]
[1741705565684,37.05778987,121.07,120.95,352.0]
[1741705565881,37.05778987,121.04,121.02,0.05217069]
[1741705566082,37.05778987,121.03,120.96,272.74]
[1741705566389,37.05778987,121.03,120.92,331.34]
[1741705566689,37.05778987,121.03,120.93,6.92328999]
[1741705567282,0.05366847,120.99,120.97,0.05719162]
[1741705567685,41.28038987,121.05,120.92,331.34]
[1741705567883,4.042,121.06,120.97,37.11968036]
[1741705568084,32.94868682,121.07,121.0,37.05778987]
[1741705568283,32.88962438,121.06,121.03,37.05778987]
[1741705568488,32.88962438,121.06,121.04,65.52953102]
[1741705568692,32.88962438,121.06,121.04,65.44775727]
[1741705568890,32.88962438,121.06,121.05,6.92953102]
[1741705569289,18.89922438,121.06,121.05,6.92953102]
[1741705569490,164.83618405,121.09,121.05,237.46732089]
[1741705569691,88.31534711,121.16,121.05,237.46732089]
[1741705569997,88.31534711,121.16,121.06,6.92953102]
[1741705570190,37.05778987,121.15,121.09,0.05273362]
[1741705570587,88.31534711,121.16,121.09,0.05273362]
[1741705570795,88.31534711,121.16,121.1,331.34]
[1741705570993,88.31534711,121.16,121.1,338.26953102]
[1741705571489,88.31534711,121.16,121.12,0.05410006]
[1741705571687,125.37313698,121.16,121.12,0.05410006]
[1741705572090,37.05778987,121.13,121.05,191.0]
[1741705572283,37.05778987,121.13,121.02,331.26]
[1741705572595,37.05778987,121.13,121.07,8.2616]
[1741705572790,37.05778987,121.13,121.03,37.05778987]
[1741705573496,6e-08,121.09,121.07,0.06164622]
[1741705573692,4.0773,121.18,121.08,66.8413]
[1741705573888,4.0773,121.18,121.06,37.05778987]
[1741705573889,37.05778987,121.14,121.03,192.65248285]
[1741705574082,37.05778987,121.11,121.03,192.65248285]
[1741705574285,95.63778987,121.14,121.03,192.65248285]
[1741705574692,95.63778987,121.14,121.07,0.05607677]
[1741705575093,95.63778987,121.14,121.02,272.66]
[1741705575290,37.05778987,121.1,121.02,272.66]
[1741705575492,4.0455,121.09,121.02,272.66]
[1741705575790,4.0455,121.09,121.02,280.9252]
[1741705575993,4.0455,121.09,121.02,272.66]
[1741705576496,0.05464007,121.07,121.04,0.05617324]
[1741705576692,0.05464007,121.07,121.04,58.61617324]
[1741705577198,37.05778987,121.17,121.04,289.15396311]
[1741705577390,4.0455,121.18,121.04,286.67396311]
[1741705577692,4.0455,121.18,121.04,286.61778987]
[1741705577891,37.05778987,121.15,121.04,249.56]
[1741705578092,4.0455,121.18,121.04,249.56]
[1741705578093,4.0455,121.18,121.05,37.05778987]
[1741705578292,4.0455,121.18,121.05,228.05778987]
[1741705578500,37.05778987,121.17,121.1,0.05994512]
[1741705578692,95.61778987,121.17,121.05,191.0]
[1741705578898,58.56,121.17,121.12,0.06269577]
[1741705579201,4.0455,121.18,121.12,0.06269577]
[1741705579508,3.9864,121.19,121.12,0.06269577]
[1741705579695,4.0701,121.25,121.14,37.05778987]
[1741705579896,4.0701,121.25,121.15,58.56]
[1741705580197,37.05778987,121.23,121.18,0.05725018]
[1741705580499,37.05778987,121.23,121.1,0.1188]
[1741705580500,74.11557974,121.2,121.08,191.0]
[1741705580795,37.05778987,121.2,121.09,309.65778987]
[1741705580998,37.05778987,121.2,121.13,8.2573]
[1741705581199,37.05778987,121.2,121.09,309.65778987]
[1741705581400,37.05778987,121.2,121.1,6.94150036]
[1741705581597,0.05868694,121.16,121.13,37.11664526]
[1741705581793,8.694e-05,121.16,121.14,58.54]
[1741705581993,8.3959,121.22,121.14,65.48150036]
[1741705582401,4.0702,121.22,121.14,65.48150036]
[1741705582600,4.0702,121.22,121.15,6.94150036]
[1741705582900,4.0702,121.22,121.17,0.05382059]
[1741705583100,4.0702,121.22,121.17,8.30872059]
[1741705583402,41.12798987,121.22,121.17,0.05382059]
[1741705583995,4.0702,121.22,121.17,0.05382059]
[1741705584200,8.3653,121.25,121.17,0.05382059]
[1741705584401,4.0631,121.3,121.18,272.46]
[1741705584593,4.0631,121.3,121.2,0.06234364]
[1741705584792,37.05778987,121.35,121.22,37.05778987]
[1741705584998,8.1943,121.36,121.25,37.05778987]
[1741705585198,8.1943,121.36,121.26,58.52]
[1741705585401,8.1943,121.36,121.29,0.05554487]
[1741705585805,8.1943,121.36,121.32,8.2446]
[1741705586108,8.1943,121.36,121.28,37.05778987]
[1741705586312,8.1943,121.36,121.33,0.05635307]
[1741705586902,136.5312077,121.38,121.33,0.05635307]
[1741705587410,136.5312077,121.38,121.35,8.2424]
[1741705587606,136.5312077,121.38,121.33,0.05635307]
[1741705587607,132.3912077,121.38,121.33,0.05635307]
[1741705588006,132.3912077,121.38,121.34,6.88280936]
[1741705588606,132.3912077,121.38,121.37,8.2415]
[1741705588812,37.05778987,121.45,121.33,37.11414294]
[1741705589106,37.05778987,121.42,121.32,272.32]
[1741705589313,37.05778987,121.42,121.38,0.05651663]
[1741705589508,37.05778987,121.44,121.38,0.05651663]
[1741705589812,37.05778987,121.44,121.32,309.37778987]
[1741705590014,37.05778987,121.42,121.4,0.05904778]
[1741705590215,58.48,121.41,121.33,6.86898644]
[1741705590414,37.05778987,121.37,121.33,6.86898644]
[1741705590711,37.05778987,121.39,121.32,8.2447]
[1741705590917,37.05778987,121.37,121.26,367.73778987]
[1741705591315,37.05778987,121.39,121.33,8.244]
[1741705591516,37.05778987,121.39,121.3,0.05958074]
[1741705591710,3.472e-05,121.33,121.31,58.46]
[1741705591906,4.0008,121.4,121.31,95.51778987]
[1741705592511,4.0008,121.4,121.31,286.51778987]
[1741705592914,4.0008,121.4,121.34,0.0528427]
[1741705593613,37.05778987,121.45,121.34,37.11063257]
[1741705593815,37.05778987,121.45,121.34,41.29233257]
[1741705594017,37.05778987,121.45,121.34,4.1817]
[1741705594218,37.05778987,121.45,121.38,0.0594216]
[1741705594414,37.05778987,121.47,121.38,0.0594216]
[1741705594817,4.2737,121.48,121.37,37.05778987]
[1741705595011,24.86,121.55,121.42,37.05778987]
[1741705595012,37.05778987,121.55,121.42,37.05778987]
[1741705595217,41.33148987,121.55,121.44,37.05778987]
[1741705595518,4.2737,121.55,121.44,37.05778987]
[1741705595714,4.2737,121.55,121.48,0.06116023]
[1741705596125,4.2737,121.55,121.5,8.2321]
[1741705596418,0.39238,121.54,121.43,521.94]
[1741705596724,0.39238,121.54,121.43,558.99778987]
[1741705597025,0.39238,121.54,121.45,37.05778987]
[1741705597316,37.05778987,121.53,121.43,559.79778987]
[1741705597510,37.05778987,121.53,121.43,522.74]
[1741705597714,0.06119495,121.49,121.47,0.05318558]
[1741705597912,37.05778987,121.51,121.47,0.05318558]
[1741705598118,0.06107057,121.49,121.47,0.05318558]
[1741705599119,7.057e-05,121.49,121.48,59.96]
[1741705599319,0.39238,121.54,121.48,250.96]
[1741705599619,92.42394141,121.62,121.5,37.05778987]
[1741705599924,52.217862,121.61,121.51,271.94]
[1741705600222,15.16007213,121.61,121.52,37.05778987]
[1741705600418,11.01007213,121.61,121.53,60.52]
[1741705600619,11.01007213,121.61,121.55,0.05994536]
[1741705600816,8.2248,121.62,121.55,0.05994536]
[1741705601124,37.05778987,121.58,121.46,37.05778987]
[1741705601423,60.76,121.6,121.5,61.24]
[1741705601921,37.05778987,121.57,121.46,98.35778987]
[1741705602125,8.3265,121.56,121.46,98.35778987]
[1741705602325,8.3265,121.56,121.49,8.2334]
[1741705602523,0.06006974,121.53,121.5,0.05671018]
[1741705603328,0.06006974,121.53,121.44,333.22]
[1741705603626,37.05778987,121.52,121.44,333.22]
[1741705603823,37.05778987,121.53,121.44,333.22]
[1741705604021,37.05778987,121.53,121.44,271.94]
[1741705604418,0.06219149,121.5,121.47,0.0546476]
[1741705604924,0.06219149,121.5,121.45,37.05778987]
[1741705605225,0.06219149,121.5,121.47,0.06022374]
[1741705606521,0.06219149,121.5,121.44,271.94]
[1741705606726,0.06219149,121.5,121.41,191.0]
[1741705606923,37.05778987,121.51,121.41,191.0]
[1741705607123,8.2345,121.48,121.41,8.2384]
[1741705607427,97.85778987,121.52,121.4,60.82]
[1741705607625,8.2334,121.5,121.44,8.2363]
[1741705607825,60.8,121.52,121.41,37.05778987]
[1741705607826,0.06040341,121.47,121.45,0.05227299]
[1741705608125,45.38428987,121.56,121.45,0.05227299]
[1741705608326,0.05996998,121.47,121.45,0.05227299]
[1741705608525,0.05996998,121.47,121.44,37.05778987]
[1741705608723,106.26428987,121.56,121.44,37.05778987]
[1741705608923,0.05863061,121.47,121.45,0.05390627]
[1741705609231,106.26428987,121.56,121.44,37.05778987]
[1741705609417,0.05415521,121.47,121.45,0.05487004]
[1741705609618,102.11428987,121.56,121.44,37.05778987]
[1741705609922,8.2302,121.54,121.49,8.2334]
[1741705610121,8.7216,121.55,121.47,37.05778987]
[1741705610122,4.33,121.55,121.47,37.05778987]
[1741705610325,8.2263,121.6,121.5,37.05778987]
[1741705610522,8.2263,121.6,121.53,37.05778987]
[1741705610723,0.05252682,121.56,121.54,0.06320276]
[1741705611222,0.05687485,121.56,121.54,0.06320276]
[1741705611421,0.05687485,121.56,121.48,4.4013]
[1741705611831,41.38778987,121.58,121.48,4.4013]
[1741705612227,60.9,121.57,121.47,251.84]
[1741705612528,37.05778987,121.56,121.44,37.05778987]
[1741705612727,0.0553446,121.53,121.51,0.0525384]
[1741705613229,0.0553446,121.53,121.44,37.05778987]
[1741705613723,0.0553446,121.53,121.47,41.40788987]
[1741705614126,0.0553446,121.53,121.52,8.2314]
[1741705614432,0.0553446,121.53,121.49,0.05940605]
[1741705614627,8.2314,121.52,121.49,0.05940605]
[1741705614929,0.0553446,121.53,121.49,0.05940605]
[1741705615134,8.2324,121.51,121.49,0.05940605]
[1741705615329,37.05778987,121.51,121.4,4.0886]
[1741705616529,0.0547287,121.47,121.44,0.05552313]
[1741705616928,0.0547287,121.47,121.39,271.72]
[1741705617132,0.0547287,121.47,121.36,60.54]
[1741705617429,37.05778987,121.48,121.35,41.14638987]
[1741705617632,37.05778987,121.45,121.35,336.3086]
[1741705617831,68.8788,121.44,121.35,336.3086]
[1741705618334,0.05560336,121.41,121.38,0.05299015]
[1741705619732,4.4153,121.49,121.4,37.05778987]
[1741705619934,4.4153,121.49,121.38,37.11078002]
[1741705620135,4.4153,121.49,121.36,64.3049]
[1741705620136,37.05778987,121.47,121.36,64.3049]
[1741705620329,37.05778987,121.47,121.37,8.2413]
[1741705620330,60.36,121.46,121.37,8.2413]
[1741705620634,60.36,121.46,121.35,271.72]
[1741705620838,60.36,121.46,121.35,275.9605]
[1741705621036,0.05674441,121.42,121.39,0.05681425]
[1741705621234,37.11453428,121.42,121.32,191.0]
[1741705621538,37.05778987,121.39,121.28,4.2405]
[1741705621833,69.0909,121.41,121.27,8.2481]
[1741705621834,8.2453,121.32,121.27,8.2481]
[1741705622034,37.05778987,121.33,121.24,271.78]
[1741705622238,8.5709,121.32,121.24,271.78]
[1741705622534,0.0560192,121.3,121.27,0.05293574]
[1741705623037,0.0560192,121.3,121.22,4.2405]
[1741705623447,8.5709,121.32,121.22,4.2405]
[1741705623740,37.05778987,121.31,121.21,191.0]
[1741705624037,37.05778987,121.28,121.19,271.88]
[1741705624240,0.05621575,121.27,121.25,0.06061121]
[1741705624433,0.05621575,121.27,121.19,271.88]
[1741705624830,60.58,121.28,121.19,308.93778987]
[1741705625034,45.62868987,121.32,121.22,37.05778987]
[1741705625434,8.5709,121.32,121.22,37.05778987]
[1741705625636,37.05778987,121.38,121.26,0.05273783]
[1741705625837,4.0422,121.38,121.31,37.05778987]
[1741705626028,2.98158121,121.34,121.32,60.66]
[1741705626238,113.7824077,121.36,121.33,4.108]
[1741705626440,203.94851215,121.37,121.35,37.05778987]
[1741705626642,169.56921215,121.37,121.35,37.05778987]
[1741705626842,0.0532676,121.37,121.35,230.59011935]
[1741705627143,169.45776316,121.38,121.35,230.59011935]
[1741705627329,120.91526316,121.38,121.35,230.59011935]
[1741705627535,2.549e-05,121.38,121.37,37.05778987]
[1741705627737,8.2444,121.49,121.37,97.77778987]
[1741705627938,8.2444,121.49,121.4,37.05778987]
[1741705628146,8.2444,121.49,121.4,8.2395]
[1741705628339,22.8205714,121.41,121.4,201.7195]
[1741705628641,8.1863,121.55,121.4,194.98154062]
[1741705628841,8.1863,121.55,121.43,37.05778987]
[1741705629044,51.11129114,121.55,121.44,60.68]
[1741705629247,46.94899114,121.55,121.46,37.05778987]
[1741705629639,8.2314,121.52,121.44,60.68]
[1741705629840,0.0565794,121.52,121.49,0.05711559]
[1741705630135,8.232,121.51,121.49,0.05711559]
[1741705630340,37.11748763,121.52,121.43,191.0]
[1741705630635,8.2356,121.46,121.41,271.98]
[1741705630836,37.05778987,121.49,121.41,271.98]
[1741705631150,12.5533,121.51,121.43,8.2373]
[1741705631344,4.3207,121.51,121.5,299.65989794]
[1741705631543,37.05778987,121.53,121.5,299.65989794]
[1741705631743,8.232,121.51,121.5,280.45279794]
[1741705631945,8.232,121.51,121.5,153.53819794]
[1741705632245,63.2,121.51,121.42,116.94044799]
[1741705632444,37.05778987,121.47,121.42,116.94044799]
[1741705632847,8.2375,121.43,121.42,116.94044799]
[1741705633042,8.2375,121.43,121.42,104.18354799]
[1741705633241,8.2375,121.43,121.42,89.37294799]
[1741705633641,45.29478987,121.44,121.42,89.37294799]
[1741705633847,37.05778987,121.44,121.34,38.06889563]
[1741705634250,0.05995267,121.4,121.38,0.0554746]
[1741705634544,37.05778987,121.49,121.39,332.92]
[1741705634751,37.05778987,121.52,121.4,37.05778987]
[1741705634947,37.05778987,121.52,121.4,41.25358987]
[1741705635143,98.13778987,121.53,121.4,232.25358987]
[1741705635349,37.05778987,121.5,121.4,195.1958]
[1741705635842,0.05554676,121.46,121.44,0.05465407]
[1741705636747,194.0,121.58,121.44,0.05465407]
[1741705636748,37.05778987,121.52,121.44,0.05465407]
[1741705637151,8.2328,121.5,121.44,61.2]
[1741705637453,37.05778987,121.52,121.44,61.2]
[1741705638048,0.0634888,121.49,121.47,0.05687953]
[1741705638247,8.2969888,121.49,121.47,0.05687953]
[1741705638451,0.0634888,121.49,121.47,0.05687953]
[1741705638853,8.2341,121.48,121.47,0.05687953]
[1741705639355,8.2341,121.48,121.47,7.953e-05]
[1741705639748,2.46,121.48,121.39,271.84]
[1741705639954,45.29338987,121.46,121.41,8.2388]
[1741705640150,61.26,121.53,121.39,271.84]
[1741705640351,8.2318,121.52,121.41,37.05778987]
[1741705640557,37.05778987,121.59,121.47,37.05778987]
[1741705640750,194.0,121.66,121.5,37.05778987]
[1741705640751,37.05778987,121.64,121.5,37.05778987]
[1741705641056,37.05778987,121.64,121.53,37.05778987]
[1741705641256,37.05778987,121.64,121.54,61.6]
[1741705641554,8.1471,121.66,121.57,37.05778987]
[1741705641555,134.70215693,121.66,121.57,37.05778987]
[1741705641851,128.07095693,121.66,121.57,191.0]
[1741705642254,0.0569683,121.63,121.6,0.05597979]
[1741705642755,128.07095693,121.66,121.6,0.05597979]
[1741705643453,121.44075693,121.66,121.61,37.05778987]
[1741705643655,218.63975121,121.68,121.64,37.05778987]
[1741705643853,204.57575121,121.68,121.67,37.05778987]
[1741705644048,176.76255121,121.68,121.67,37.05778987]
[1741705644250,151.39685121,121.68,121.67,45.27898987]
[1741705644454,151.39685121,121.68,121.67,8.2212]
[1741705644956,133.16495121,121.68,121.67,8.2212]
[1741705645153,133.16495121,121.68,121.66,0.05787909]
[1741705645457,0.05593464,121.69,121.66,0.05787909]
[1741705645859,271.8,121.85,121.66,0.05787909]
[1741705645860,271.64,121.91,121.68,37.05778987]
[1741705646157,4.3167,121.85,121.73,37.05778987]
[1741705646461,323.81105231,121.9,121.75,37.05778987]
[1741705646656,37.05778987,121.83,121.74,63.52]
[1741705646854,323.81105231,121.9,121.75,37.05778987]
[1741705647054,0.06255453,121.8,121.78,37.05778987]
[1741705647257,297.34884218,121.9,121.8,8.2123]
[1741705647460,37.05778987,121.88,121.79,63.56]
[1741705647660,37.05778987,121.81,121.71,37.05778987]
[1741705647861,37.05778987,121.81,121.7,525.92]
[1741705648056,37.05778987,121.79,121.7,525.92]
[1741705648256,8.217,121.74,121.66,63.4]
[1741705648460,63.4,121.79,121.66,63.4]
[1741705648659,37.05778987,121.75,121.73,0.05827738]
[1741705648860,37.05778987,121.75,121.66,63.4]
[1741705649055,4.109,121.74,121.66,63.4]
[1741705649361,8.2179,121.72,121.66,63.4]
[1741705649563,4.109,121.74,121.66,63.4]
[1741705649864,41.16678987,121.74,121.66,63.4]
[1741705650160,0.05782303,121.71,121.69,0.05710972]
[1741705650859,8.2139,121.78,121.7,37.05778987]
[1741705651162,37.05778987,121.8,121.71,63.7]
[1741705651357,8.2172,121.73,121.67,63.72]
[1741705651564,37.05778987,121.75,121.67,63.72]
[1741705651954,8.2187,121.71,121.67,63.72]
[1741705652164,0.05843449,121.72,121.7,4.933e-05]
[1741705652559,3.9974,121.75,121.66,37.05778987]
[1741705652763,4.2768,121.79,121.69,37.05778987]